bitfinex/quotes_ETHUSD_20240715
["timestamp","ask_amount","ask_price","bid_price","bid_amount"]
[1721023178948,4.9523,3343.3,3342.7,0.0518667]
[1721023179558,3.0,3343.5,3342.9,2.69219]
[1721023179754,1.03574476,3343.4,3342.9,2.69219]
[1721023180067,3.0,3343.5,3343.0,2.74398628]
[1721023180270,1.03570414,3343.4,3343.0,2.74398628]
[1721023180457,3.0,3343.5,3343.0,2.74398628]
[1721023180658,1.03571107,3343.4,3343.0,2.74398628]
[1721023180869,3.0,3343.5,3343.0,2.74398628]
[1721023181095,1.035706,3343.4,3343.0,2.74398628]
[1721023181301,3.0,3343.5,3343.0,2.74398628]
[1721023181460,1.03567675,3343.4,3343.0,2.74398628]
[1721023181792,3.0,3343.5,3343.1,2.6921]
[1721023182094,3.0,3343.5,3343.2,0.05175895]
[1721023182290,3.0,3343.5,3343.2,2.69201]
[1721023182504,5.4129,3343.6,3343.3,0.05173028]
[1721023182699,1.03563311,3343.5,3343.3,0.05173028]
[1721023183000,3.0,3343.5,3343.3,0.05173028]
[1721023183172,5.4129,3343.6,3343.3,0.05173028]
[1721023183493,1.03564171,3343.5,3343.3,0.05173028]
[1721023183695,3.0,3343.5,3343.3,0.05173028]
[1721023184194,5.4129,3343.6,3343.3,0.05173028]
[1721023184408,1.0356363,3343.5,3343.3,0.05173028]
[1721023184595,1.0356363,3343.4,3343.3,0.05173028]
[1721023185362,1.0356363,3343.4,3343.2,2.69202]
[1721023185600,1.0356363,3343.4,3343.3,0.05173028]
[1721023185820,3.0,3343.5,3343.3,0.05173028]
[1721023186101,1.03569561,3343.4,3343.3,0.05173028]
[1721023186272,2.13269561,3343.4,3343.3,0.05173028]
[1721023186472,2.13269561,3343.4,3343.0,2.69213]
[1721023186690,1.097,3343.2,3343.1,2.74389762]
[1721023187283,2.13266853,3343.2,3343.1,2.74389762]
[1721023188115,1.097,3343.4,3343.2,2.69198]
[1721023188333,1.03561903,3343.3,3343.2,2.69198]
[1721023189027,1.097,3343.4,3343.2,2.69198]
[1721023189190,1.03561812,3343.3,3343.2,2.69198]
[1721023192347,1.097,3343.4,3343.2,2.69198]
[1721023192535,1.03563691,3343.3,3343.2,2.69198]
[1721023192917,1.03564553,3343.3,3343.2,2.74366778]
[1721023193639,1.03564553,3343.3,3343.2,7.91139778]
[1721023193937,1.03564553,3343.3,3343.2,5.43569778]
[1721023195302,1.097,3343.5,3343.3,2.69191]
[1721023195769,1.097,3343.5,3343.4,0.05163045]
[1721023195903,2.13263427,3343.5,3343.4,0.05163045]
[1721023199016,2.13262769,3343.5,3343.4,0.05163045]
[1721023199439,2.13262769,3343.5,3343.4,2.74350045]
[1721023200307,1.03562769,3343.5,3343.4,2.74350045]
[1721023200927,1.097,3343.7,3343.4,2.74350045]
[1721023201253,1.03550745,3343.6,3343.4,2.74350045]
[1721023201428,1.03553749,3343.5,3343.4,2.74350045]
[1721023201850,2.13255017,3343.5,3343.4,0.05163045]
[1721023202255,2.45320386,3343.5,3343.4,0.05163045]
[1721023202975,3.70537081,3343.5,3343.4,0.05163045]
[1721023203577,2.45320386,3343.5,3343.4,0.05163045]
[1721023204140,1.35620386,3343.5,3343.4,0.05163045]
[1721023204346,0.32055314,3343.5,3343.4,2.74345045]
[1721023204651,1.03554975,3343.5,3343.4,2.74345045]
[1721023204861,1.35608632,3343.5,3343.4,2.74345045]
[1721023207580,2.1951682,3344.1,3343.7,2.3901]
[1721023207581,0.31270882,3344.1,3343.7,2.3901]
[1721023207804,1.25570745,3344.7,3344.0,1.097]
[1721023208099,1.35542,3344.6,3343.8,2.75132954]
[1721023208281,1.35542,3344.5,3343.8,2.75132954]
[1721023208488,2.2901,3344.8,3344.5,2.69095]
[1721023208687,1.3554377,3344.7,3344.5,2.69095]
[1721023208998,1.3554377,3344.6,3343.4,0.05163045]
[1721023209301,1.25570745,3344.3,3343.6,2.69165]
[1721023209615,1.3554377,3344.2,3343.8,2.69154]
[1721023209760,1.3554377,3344.1,3343.8,2.69154]
[1721023209961,1.25570745,3344.3,3343.6,2.69165]
[1721023210158,2.61155806,3344.2,3343.6,2.69165]
[1721023210382,1.35585061,3344.1,3343.6,2.69165]
[1721023210597,1.35585061,3344.1,3343.4,2.74348045]
[1721023210598,1.25570745,3344.2,3343.5,2.69178]
[1721023210801,1.35598398,3344.1,3343.8,2.69153]
[1721023211002,3.72540745,3344.4,3343.8,2.69153]
[1721023211187,1.35581778,3344.3,3343.8,2.69153]
[1721023211361,1.35581778,3344.2,3344.0,2.69137]
[1721023211563,1.25570745,3344.6,3344.3,2.69111]
[1721023211799,1.25960209,3344.9,3343.6,2.2833]
[1721023212015,1.35545346,3344.8,3344.4,2.691]
[1721023212222,1.03521585,3344.7,3344.5,2.69097]
[1721023212369,0.00389464,3344.9,3344.5,2.69097]
[1721023212703,1.35543261,3344.8,3344.5,2.69093]
[1721023212861,0.52826051,3344.9,3344.5,2.69093]
[1721023212862,0.00389464,3344.9,3344.5,2.69093]
[1721023213200,1.35544108,3344.8,3344.5,2.69093]
[1721023213502,0.00389464,3344.9,3344.5,2.69093]
[1721023214000,1.3554415,3344.8,3344.5,2.69093]
[1721023214159,2.42239152,3344.7,3343.8,2.6915]
[1721023214372,1.35562237,3344.6,3343.8,2.6915]
[1721023214567,1.40145192,3344.5,3343.8,2.6915]
[1721023214814,3.73248565,3344.4,3343.8,2.6915]
[1721023214967,1.40151841,3344.3,3343.8,2.6915]
[1721023215302,1.40151841,3344.3,3343.4,0.05163045]
[1721023215303,5.06802,3344.1,3343.4,0.05163045]
[1721023215522,2.6915,3343.9,3343.4,0.05163045]
[1721023215707,2.3767,3344.0,3343.4,0.05163045]
[1721023216014,1.35613164,3343.9,3343.5,0.05131257]
[1721023216163,1.35615243,3343.8,3343.2,2.692]
[1721023216365,1.03565248,3343.7,3343.2,2.692]
[1721023216561,0.04569152,3343.8,3343.3,0.05144721]
[1721023216849,2.3537,3343.6,3342.8,2.6923]
[1721023217004,2.3537,3343.6,3342.7,2.69241]
[1721023217005,3.05817892,3343.5,3343.4,0.05141854]
[1721023217204,3.05817892,3343.5,3342.5,2.69258]
[1721023217205,2.69191,3343.4,3342.5,2.69258]
[1721023217365,2.3547,3343.2,3341.6,1.56113932]
[1721023217569,2.69229,3342.9,3342.6,0.05170822]
[1721023217815,1.35651927,3342.8,3341.8,2.69314]
[1721023217986,1.25282342,3343.3,3342.2,2.3017]
[1721023218201,1.56647714,3343.5,3342.7,2.69238]
[1721023218202,1.03579498,3343.2,3342.7,2.69238]
[1721023218380,0.04569152,3343.3,3342.6,2.69249]
[1721023218587,1.03580049,3343.2,3342.9,2.69226]
[1721023218805,3.0,3343.5,3343.0,2.69216]
[1721023219001,5.2921,3343.6,3343.0,2.74223841]
[1721023219310,1.3563368,3343.5,3343.0,2.74223841]
[1721023219606,2.2921,3343.6,3343.0,2.74223841]
[1721023219969,1.03563477,3343.5,3343.0,2.69216]
[1721023220169,2.2921,3343.6,3343.0,2.69216]
[1721023220407,1.0356348,3343.5,3343.1,0.05002653]
[1721023220612,1.25282342,3343.9,3343.1,0.05002653]
[1721023220798,1.35615175,3343.8,3343.1,0.05002653]
[1721023221096,1.35615175,3343.7,3343.3,2.69193]
[1721023221418,4.25282342,3343.9,3342.6,5.11456]
[1721023221419,1.35624165,3343.6,3343.2,2.69201]
[1721023221720,1.25282342,3343.8,3343.3,0.04992279]
[1721023221892,1.35632155,3343.7,3343.3,0.04992279]
[1721023222225,1.25282342,3343.8,3343.3,2.69194]
[1721023222226,1.35632155,3343.6,3343.3,2.69194]
[1721023222431,1.25282342,3343.8,3343.3,2.69194]
[1721023222586,1.35627874,3343.7,3343.4,0.04988794]
[1721023222893,0.32062163,3343.6,3343.4,0.04988794]
[1721023223103,1.25282342,3343.8,3343.4,0.04988794]
[1721023223292,1.35625646,3343.7,3343.4,0.04988794]
[1721023223497,0.32062775,3343.6,3343.3,2.69194]
[1721023223722,1.25353377,3343.8,3343.3,2.69194]
[1721023223909,1.35627561,3343.7,3343.3,2.69194]
[1721023224202,1.25353377,3343.9,3343.0,0.05981955]
[1721023224401,0.31282224,3344.1,3343.7,2.69161]
[1721023224620,1.25353377,3344.5,3343.7,2.69161]
[1721023224824,1.25353377,3344.7,3344.0,2.69137]
[1721023225036,1.35559421,3344.6,3344.0,2.69137]
[1721023225196,1.35562474,3344.5,3344.1,0.0496827]
[1721023225398,0.32030367,3344.4,3343.8,2.69154]
[1721023225700,1.25353377,3344.6,3344.0,2.69138]
[1721023226036,3.91937176,3344.8,3344.1,0.04961311]
[1721023226037,1.03538422,3344.5,3344.1,0.04961311]
[1721023226194,6.29668377,3344.8,3344.1,0.04961311]
[1721023226396,3.77106955,3344.7,3344.1,0.04961311]
[1721023226702,2.60924317,3344.6,3344.1,0.04961311]
[1721023226897,1.3557094,3344.5,3344.1,0.04961311]
[1721023227114,6.60967162,3344.8,3344.1,0.04961311]
[1721023227115,3.60593377,3344.8,3344.1,0.04961311]
[1721023227431,2.6092966,3344.7,3344.1,2.74086311]
[1721023227588,1.35576283,3344.6,3344.1,2.74086311]
[1721023227793,1.35576283,3344.5,3344.1,2.74086311]
[1721023227986,1.25353377,3344.7,3344.1,2.74086311]
[1721023228186,1.35576013,3344.6,3344.1,2.74086311]
[1721023228430,1.35576013,3344.5,3344.2,2.69119]
[1721023228736,1.25353377,3344.7,3344.2,2.74077446]
[1721023228899,2.3524,3344.8,3344.3,2.69113]
[1721023228900,1.35573889,3344.6,3344.3,2.69113]
[1721023229103,2.3524,3344.8,3344.3,2.69113]
[1721023229363,1.35557356,3344.7,3344.3,2.69113]
[1721023229643,1.35561544,3344.6,3344.4,0.04947768]
[1721023229825,3.60593377,3344.8,3344.4,0.04947768]
[1721023229989,1.35559779,3344.7,3344.4,0.04947768]
[1721023230189,1.35559779,3344.6,3344.4,0.04947768]
[1721023230502,2.3524,3344.8,3344.5,0.04919696]
[1721023230709,1.35554587,3344.7,3344.3,2.69113]
[1721023231030,1.25353377,3344.9,3344.3,2.69113]
[1721023231031,1.25353377,3344.9,3344.5,2.69097]
[1721023231234,1.35550813,3344.8,3344.5,2.69097]
[1721023231433,4.25353377,3345.0,3344.5,2.69097]
[1721023231637,4.35548204,3344.9,3344.5,2.69097]
[1721023231797,1.35548204,3344.8,3344.6,0.04916986]
[1721023232012,3.0,3344.9,3344.6,0.04916986]
[1721023232334,1.35551476,3344.8,3344.5,2.69097]
[1721023232540,3.0,3344.9,3344.5,2.69097]
[1721023232848,3.0,3345.1,3344.6,0.0491544]
[1721023233026,1.03523282,3344.8,3344.6,0.0491544]
[1721023233237,3.0,3345.0,3344.5,2.69097]
[1721023233412,1.35553328,3344.9,3344.5,2.69097]
[1721023233613,4.25229511,3345.1,3344.6,0.0491544]
[1721023233927,1.35547745,3345.0,3344.5,2.69097]
[1721023234107,1.35547745,3344.9,3344.6,0.0491544]
[1721023234306,1.03522819,3344.8,3344.5,2.69097]
[1721023234521,4.25229511,3345.1,3344.6,0.0491544]
[1721023234740,2.44619251,3345.0,3344.5,2.69097]
[1721023234942,1.35551411,3344.9,3344.5,2.69097]
[1721023235153,1.03524087,3344.8,3344.6,0.0491544]
[1721023235338,1.0906784,3345.0,3344.5,2.69097]
[1721023235506,1.35552721,3344.9,3344.7,0.04912576]
[1721023235710,1.35552721,3344.9,3344.5,2.69097]
[1721023235711,1.03525626,3344.8,3344.5,2.69097]
[1721023236027,4.25229511,3345.1,3344.6,0.0491544]
[1721023236348,2.28966961,3345.0,3344.5,2.69097]
[1721023236517,1.3555281,3344.9,3344.5,2.69097]
[1721023236711,1.03525907,3344.8,3344.6,0.04913585]
[1721023236966,2.18643662,3345.0,3344.5,2.69097]
[1721023237149,1.35557083,3344.9,3344.5,2.69097]
[1721023237349,1.0352762,3344.8,3344.6,0.04913585]
[1721023237553,2.18643662,3345.0,3344.5,2.69097]
[1721023237753,1.35557189,3344.9,3344.7,0.04910876]
[1721023237959,1.35557189,3344.8,3344.2,2.69122]
[1721023238148,1.35557189,3344.7,3344.2,2.69122]
[1721023238484,1.03527498,3344.6,3344.3,0.04922333]
[1721023238639,1.03527498,3344.8,3344.3,0.04922333]
[1721023238842,1.97192117,3344.7,3344.2,2.69122]
[1721023239061,1.03533816,3344.6,3344.2,2.69122]
[1721023239259,0.61622983,3344.7,3344.3,0.04922333]
[1721023239556,1.03532649,3344.6,3344.2,2.69122]
[1721023239757,0.61622983,3344.7,3344.2,2.69122]
[1721023239962,1.0353354,3344.6,3344.3,0.04922333]
[1721023240162,0.95150301,3344.6,3344.3,0.04922333]
[1721023240384,0.95150301,3344.6,3343.5,2.69172]
[1721023240683,2.3493,3344.6,3344.4,0.04921169]
[1721023240978,2.3493,3344.6,3343.8,2.69149]
[1721023241277,1.03537662,3344.5,3343.9,2.69145]
[1721023241477,2.3493,3344.6,3343.9,2.74080493]
[1721023241649,1.73081907,3344.5,3343.9,0.04935493]
[1721023242014,0.69543465,3344.5,3343.9,2.74081493]
[1721023242344,0.69543465,3344.5,3343.9,0.04935493]
[1721023242678,1.03539131,3344.4,3343.9,0.04935493]
[1721023242840,0.04569152,3344.4,3343.9,0.04935493]
[1721023243045,0.04569152,3344.4,3343.7,2.69162]
[1721023243366,1.03541807,3344.3,3343.7,2.69162]
[1721023243680,3.46781007,3344.4,3343.8,0.04939749]
[1721023243681,0.04569152,3344.2,3343.8,0.04939749]
[1721023243843,3.70561624,3344.1,3343.8,0.04939749]
[1721023244158,1.35604484,3344.0,3343.3,2.69188]
[1721023244369,1.0355052,3343.9,3343.3,2.69188]
[1721023244536,2.3496,3344.1,3343.3,2.69188]
[1721023244741,2.49700181,3344.0,3343.3,2.69188]
[1721023244991,1.03557483,3343.9,3343.3,2.69188]
[1721023245279,1.14085008,3344.0,3343.3,2.69188]
[1721023245476,1.03558575,3343.9,3343.3,2.69188]
[1721023245780,3.83223008,3344.0,3343.3,2.69188]
[1721023245983,1.0355592,3343.9,3343.3,2.69188]
[1721023246135,1.0355592,3343.9,3343.1,2.69209]
[1721023246340,3.0,3344.3,3343.6,2.69166]
[1721023246541,1.35589673,3344.2,3343.6,2.69166]
[1721023246740,2.69107,3344.4,3343.7,2.69156]
[1721023246975,5.60860478,3344.3,3343.7,2.69156]
[1721023247191,1.35582429,3344.2,3343.7,2.69156]
[1721023247390,3.0,3344.3,3343.8,2.69153]
[1721023247591,1.35587609,3344.2,3343.8,2.69153]
[1721023247895,3.0,3344.3,3343.8,2.69153]
[1721023248083,1.3558775,3344.2,3343.8,2.69153]
[1721023248265,1.03543393,3344.1,3343.8,2.69153]
[1721023248596,1.25278049,3344.4,3343.9,2.69146]
[1721023248798,1.03540014,3344.3,3344.0,2.69133]
[1721023249126,2.3404,3344.6,3344.0,2.74077687]
[1721023249402,1.35570292,3344.5,3344.0,2.74077687]
[1721023249607,1.03534411,3344.4,3344.0,2.74077687]
[1721023249762,1.03534411,3344.5,3344.0,2.74077687]
[1721023249960,0.32039676,3344.4,3344.0,2.74077687]
[1721023250159,1.03534411,3344.3,3344.0,2.74077687]
[1721023250593,1.03534411,3344.4,3344.0,2.74077687]
[1721023250824,0.32039867,3344.3,3344.0,0.04944687]
[1721023251103,1.03534411,3344.2,3343.8,2.69153]
[1721023251264,1.03534411,3344.2,3344.1,0.04936719]
[1721023251459,1.03534411,3344.2,3343.8,2.69153]
[1721023251712,1.03534411,3344.4,3344.1,0.04936719]
[1721023251879,1.35581954,3344.3,3343.9,2.69144]
[1721023252205,1.25278049,3344.5,3343.9,2.69144]
[1721023252206,1.03541715,3344.2,3343.9,2.69144]
[1721023252412,1.25278049,3344.5,3344.0,0.04939584]
[1721023252567,1.03542514,3344.1,3344.0,0.04939584]
[1721023252767,2.36124409,3344.5,3344.0,0.04939584]
[1721023252980,1.35587014,3344.4,3344.0,0.04939584]
[1721023253182,1.35587014,3344.3,3344.0,0.04939584]
[1721023253398,1.35587014,3344.2,3344.0,0.04939584]
[1721023253706,1.03543008,3344.1,3344.0,0.04939584]
[1721023253909,0.32048036,3344.1,3343.7,2.69156]
[1721023254067,1.25315204,3344.4,3344.0,0.04944841]
[1721023254068,3.94423204,3344.4,3344.0,0.04944841]
[1721023254410,6.46531845,3344.3,3344.1,0.04941976]
[1721023254643,1.35596102,3344.2,3343.5,2.69178]
[1721023254848,1.35596102,3344.1,3343.6,2.6917]
[1721023255003,3.94416204,3344.5,3343.7,2.69158]
[1721023255199,1.35577504,3344.4,3343.7,2.74111437]
[1721023255422,1.35577504,3344.3,3343.8,2.69154]
[1721023255733,1.03539076,3344.2,3343.8,2.69154]
[1721023255901,1.03539076,3344.1,3343.8,2.69154]
[1721023256103,1.03539076,3344.0,3343.9,0.04948479]
[1721023256335,1.03539076,3344.3,3343.9,0.04948479]
[1721023256650,1.35584051,3344.2,3343.8,2.69154]
[1721023256797,1.35586004,3344.1,3343.6,2.69165]
[1721023256997,1.35586004,3344.1,3343.5,2.69178]
[1721023256998,1.03539076,3344.0,3343.9,0.04947242]
[1721023257196,1.03539076,3344.2,3343.7,2.69157]
[1721023257403,1.03539076,3344.1,3343.9,0.04947242]
[1721023257640,1.03539076,3344.3,3343.7,2.69157]
[1721023257943,0.32046109,3344.2,3344.0,0.04944995]
[1721023258240,1.03539076,3344.1,3343.7,2.69157]
[1721023258600,3.94422204,3344.4,3343.7,2.69157]
[1721023258601,1.03539076,3344.0,3343.7,2.69157]
[1721023258935,3.94422204,3344.4,3343.7,2.69157]
[1721023259150,2.28478247,3344.3,3343.8,2.69154]
[1721023259318,1.35593636,3344.2,3343.8,2.69154]
[1721023259634,1.03546413,3344.1,3343.8,2.69154]
[1721023259798,1.56598113,3344.5,3343.8,2.69154]
[1721023260002,1.35579393,3344.4,3343.8,2.69154]
[1721023260299,1.35579393,3344.3,3343.8,2.69154]
[1721023260511,1.35579393,3344.2,3343.8,2.69154]
[1721023260818,1.0353909,3344.1,3343.8,2.69154]
[1721023261010,1.0353909,3344.3,3343.8,2.69154]
[1721023261343,0.32041743,3344.2,3343.8,2.69154]
[1721023261516,1.35589255,3344.1,3343.8,2.69154]
[1721023261709,1.25354045,3344.4,3343.8,2.69154]
[1721023262025,1.35590088,3344.3,3343.9,2.69146]
[1721023262228,1.03544589,3344.2,3343.9,2.69146]
[1721023262410,1.03544589,3344.1,3343.9,2.69146]
[1721023262611,1.56636954,3344.5,3343.9,2.69146]
[1721023262832,1.35573902,3344.4,3343.9,2.69146]
[1721023263019,1.35573902,3344.3,3343.9,2.69146]
[1721023263345,1.35573737,3344.2,3343.9,2.69146]
[1721023263510,1.03536267,3344.1,3344.0,2.69138]
[1721023263712,0.32040527,3344.1,3344.0,2.74083614]
[1721023263914,1.35576794,3344.2,3344.0,2.74083614]
[1721023264239,1.35583878,3344.1,3344.0,0.04945614]
[1721023264439,1.35583878,3344.1,3343.8,2.69148]
[1721023264612,1.25354045,3344.3,3344.0,0.04944221]
[1721023264802,1.35588872,3344.2,3343.8,2.69148]
[1721023265004,1.35588872,3344.1,3343.8,2.69148]
[1721023265231,1.35588872,3344.0,3343.8,2.69148]
[1721023265436,1.35591125,3343.9,3343.5,2.69176]
[1721023265640,1.25354045,3344.2,3343.7,2.69156]
[1721023265937,1.03542858,3344.1,3343.8,2.69153]
[1721023266098,1.25354045,3344.3,3343.9,2.69142]
[1721023266099,1.03542858,3344.0,3343.9,2.69142]
[1721023266952,1.25354045,3344.4,3343.5,2.75158714]
[1721023267208,1.03531165,3344.3,3344.2,2.69117]
[1721023267479,1.03531165,3344.3,3344.2,5.38239]
[1721023267900,1.56752468,3344.8,3344.2,5.38239]
[1721023267901,3.0,3344.9,3344.4,2.69106]
[1721023268044,1.25492297,3344.6,3344.4,2.69106]
[1721023268357,1.03525842,3344.5,3344.4,2.69106]
[1721023268559,1.03525842,3344.6,3344.4,2.69106]
[1721023268784,1.03525842,3344.5,3344.4,2.69106]
[1721023269281,1.25492297,3345.0,3344.6,2.69082]
[1721023269440,1.03512693,3344.9,3344.7,2.69081]
[1721023269645,1.25492297,3345.0,3344.7,2.69081]
[1721023269646,1.03512693,3344.8,3344.7,2.69081]
[1721023270144,1.25492297,3345.2,3344.6,0.05979327]
[1721023270344,1.25492297,3345.4,3345.2,2.69042]
[1721023270555,1.03499872,3345.3,3345.2,2.69042]
[1721023271141,1.03501973,3345.3,3345.2,2.69042]
[1721023271681,1.0350491,3345.3,3345.2,2.69042]
[1721023271982,2.28930806,3345.3,3345.2,2.69042]
[1721023272184,1.0350491,3345.3,3345.2,2.69042]
[1721023273080,2.28930806,3345.3,3345.2,2.69042]
[1721023273415,1.0350491,3345.3,3345.2,2.69042]
[1721023274281,1.25425896,3345.5,3345.2,2.69042]
[1721023274455,1.03503997,3345.4,3345.2,2.69042]
[1721023274680,1.25425896,3345.5,3345.2,2.69042]
[1721023274866,1.03504001,3345.4,3345.2,2.69042]
[1721023275205,1.25425896,3345.5,3345.2,2.69042]
[1721023275368,1.03503986,3345.4,3345.2,2.69042]
[1721023275575,1.25425896,3345.5,3345.2,2.69042]
[1721023275757,1.25425896,3345.7,3345.3,2.69029]
[1721023275963,2.28926232,3345.6,3345.3,2.69029]
[1721023276165,1.03500336,3345.5,3345.1,2.69044]
[1721023276363,1.08069488,3345.5,3345.2,0.04718996]
[1721023276589,1.03500336,3345.4,3345.2,0.04718996]
[1721023277607,1.25425896,3345.6,3344.9,2.69064]
[1721023277784,1.03504324,3345.5,3345.3,0.04715517]
[1721023277985,1.03504324,3345.4,3344.9,2.69064]
[1721023278309,1.25425896,3345.6,3344.9,2.69064]
[1721023278502,1.03508362,3345.5,3345.0,0.04724106]
[1721023278687,1.03508362,3345.4,3345.0,0.04724106]
[1721023279002,3.94435896,3345.6,3345.0,0.04724106]
[1721023279211,2.28936326,3345.5,3345.0,0.04724106]
[1721023279507,1.25425896,3345.7,3345.0,0.04724106]
[1721023279816,1.03502955,3345.6,3345.0,0.04724106]
[1721023280315,1.03502955,3345.5,3345.0,0.04724106]
[1721023280500,1.03502955,3345.6,3345.0,0.04724106]
[1721023280694,4.56604924,3345.8,3345.0,0.04724106]
[1721023280695,4.25229358,3345.8,3345.0,0.04724106]
[1721023281016,4.25229358,3345.8,3345.1,2.69044]
[1721023281211,1.03498356,3345.7,3345.1,2.69044]
[1721023281412,1.03502936,3345.6,3345.3,2.69032]
[1721023281578,3.0,3345.8,3345.3,2.69032]
[1721023281579,1.03502936,3345.5,3345.3,2.69032]
[1721023281777,4.25229358,3345.8,3345.3,2.69032]
[1721023281778,1.25229358,3345.7,3345.4,0.04714502]
[1721023282022,1.03503097,3345.6,3345.3,2.69032]
[1721023282226,1.03503097,3345.5,3345.3,2.69032]
[1721023282377,1.03503097,3345.7,3345.3,2.69032]
[1721023282581,1.03503097,3345.6,3345.3,2.69032]
[1721023282811,1.03503097,3345.5,3345.3,2.69032]
[1721023283110,4.25229358,3345.8,3345.3,2.69032]
[1721023283318,1.03503497,3345.7,3345.3,2.69032]
[1721023283620,1.03503497,3345.6,3345.3,2.69032]
[1721023283926,4.25229358,3345.8,3345.3,2.69032]
[1721023284087,1.03502973,3345.7,3345.3,2.69032]
[1721023284282,1.03499025,3345.6,3345.3,2.69032]
[1721023284519,4.25229358,3345.8,3345.3,2.69032]
[1721023284717,1.03502828,3345.7,3345.3,2.69032]
[1721023284920,1.03502828,3345.6,3345.3,2.69032]
[1721023285081,1.03502828,3345.7,3345.3,2.69032]
[1721023286039,0.31288416,3345.6,3345.3,2.69032]
[1721023287093,0.31288416,3345.6,3345.4,2.69018]
[1721023287439,0.31288416,3345.6,3345.5,2.73728407]
[1721023287620,1.25229358,3346.3,3345.7,2.69001]
[1721023287806,1.03484084,3346.2,3345.7,2.69001]
[1721023288126,1.03484084,3346.1,3345.7,2.69001]
[1721023288292,3.72439084,3346.3,3345.8,0.04701358]
[1721023288489,1.03484084,3346.2,3345.8,0.04701358]
[1721023288685,1.03484084,3346.2,3345.5,2.69018]
[1721023288930,2.6897,3346.1,3345.9,0.04698496]
[1721023289131,2.6897,3346.1,3345.4,2.69025]
[1721023289285,1.03484084,3346.0,3345.4,2.69025]
[1721023289486,1.03484084,3346.0,3345.5,0.04703938]
[1721023290789,1.03491968,3345.9,3345.5,0.04703938]
[1721023291031,2.6897,3346.1,3345.5,0.04703938]
[1721023291207,1.03493506,3346.0,3345.5,0.04703938]
[1721023291391,1.03493506,3345.9,3345.5,0.04703938]
[1721023291588,1.03493506,3346.0,3345.5,0.04703938]
[1721023291809,3.72471506,3346.0,3345.5,0.04703938]
[1721023292011,3.40693506,3345.9,3345.5,0.04703938]
[1721023292257,1.03493506,3345.8,3345.2,2.6904]
[1721023292432,1.03493506,3345.8,3345.6,0.04701076]
[1721023292624,1.03493506,3345.8,3345.3,2.69033]
[1721023292947,1.03493506,3345.8,3345.4,0.04706801]
[1721023293642,1.03493506,3345.8,3345.4,2.73730801]
[1721023294027,2.68978,3346.0,3345.4,0.04706801]
[1721023294233,1.03492162,3345.9,3345.4,0.04706801]
[1721023294551,1.03492162,3345.8,3345.5,0.04703938]
[1721023294748,2.68978,3346.0,3345.3,2.69034]
[1721023294749,1.03492162,3345.9,3345.3,2.69034]
[1721023294956,1.03492162,3345.7,3345.4,0.04706801]
[1721023295249,2.68978,3346.0,3345.4,0.04706801]
[1721023295546,1.03496439,3345.9,3345.4,0.04706801]
[1721023295747,1.03496439,3345.8,3345.4,0.04706801]
[1721023295965,1.03496439,3345.7,3345.1,2.69047]
[1721023296120,1.03496439,3345.7,3345.2,0.04712527]
[1721023296320,1.03496439,3345.6,3345.2,0.04712527]
[1721023296527,1.03496439,3345.7,3345.2,0.04712527]
[1721023296923,1.03496439,3345.7,3345.2,2.73753527]
[1721023297261,2.68978,3346.0,3345.2,2.73753527]
[1721023297442,1.03490407,3345.9,3345.2,2.73753527]
[1721023298133,3.72477407,3345.9,3345.2,2.73753527]
[1721023298365,1.03490407,3345.8,3345.2,2.73753527]
[1721023299775,1.03490407,3345.9,3345.3,2.69027]
[1721023300144,1.03490407,3345.9,3345.3,5.38054]
[1721023300343,1.03490407,3345.9,3345.4,2.73728645]
[1721023300644,1.03487406,3345.8,3345.4,2.73728645]
[1721023300961,5.06164,3346.2,3345.5,2.69017]
[1721023300962,1.03486065,3345.7,3345.5,2.69017]
[1721023301137,1.03486065,3345.6,3345.5,2.69017]
[1721023301336,1.03486065,3345.6,3345.5,2.73718782]
[1721023302269,2.68956,3346.3,3345.7,2.69]
[1721023302270,3.0,3346.3,3345.7,2.69]
[1721023302480,1.03483051,3346.2,3345.7,2.69]
[1721023302646,1.03483051,3346.1,3345.8,0.04688424]
[1721023302845,1.03483051,3346.0,3345.7,2.69]
[1721023303146,3.00230293,3346.4,3345.8,0.04686576]
[1721023303345,1.03480071,3346.3,3345.7,2.69]
[1721023303558,1.03480071,3346.2,3345.8,0.04686576]
[1721023303760,3.00230293,3346.4,3345.7,2.69]
[1721023303967,1.03477498,3346.3,3345.7,2.69]
[1721023304271,1.03477498,3346.3,3345.8,0.04686576]
[1721023304560,1.03477498,3346.3,3345.7,2.69]
[1721023304771,1.03477498,3346.3,3345.8,0.04685498]
[1721023304978,1.03477498,3346.3,3345.7,2.69]
[1721023305680,1.03477498,3346.3,3345.4,2.69024]
[1721023305681,5.18692,3346.2,3345.4,2.69024]
[1721023305883,1.03477498,3346.1,3345.4,2.69024]
[1721023306087,1.0804665,3346.1,3345.5,0.04694085]
[1721023306289,1.03477498,3346.0,3345.4,2.69024]
[1721023306951,0.04569152,3346.1,3345.4,2.69024]
[1721023306952,1.03495208,3345.9,3345.4,2.69024]
[1721023307149,1.03495208,3345.8,3345.5,2.69016]
[1721023307360,1.03495208,3345.7,3345.6,0.04691222]
[1721023310400,1.03493447,3345.7,3345.4,2.69025]
[1721023310601,1.25282742,3346.0,3345.5,0.04694085]
[1721023310805,1.03492653,3345.9,3345.5,0.04694085]
[1721023311109,2.3507,3345.7,3345.5,0.04694085]
[1721023311402,1.03492653,3345.6,3345.1,2.69049]
[1721023311601,1.03492653,3345.6,3345.2,0.04704675]
[1721023312385,1.03492653,3345.6,3344.9,2.6906]
[1721023312386,2.28775395,3345.6,3344.9,2.6906]
[1721023312728,1.03492653,3345.5,3345.0,2.73767402]
[1721023313590,1.25282742,3345.6,3345.0,2.73767402]
[1721023313917,1.03505956,3345.5,3345.1,2.69049]
[1721023314121,1.03505956,3345.4,3345.1,2.69049]
[1721023314295,1.03505956,3345.3,3345.2,0.04704675]
[1721023314498,1.03499874,3345.3,3345.2,0.04704675]
[1721023316087,2.28782616,3345.3,3345.2,0.04704675]
[1721023316414,2.98878247,3345.3,3345.2,0.04704829]
[1721023316626,1.03499874,3345.3,3344.7,2.69081]
[1721023316803,1.03499874,3345.3,3345.2,0.04704829]
[1721023316986,1.03499874,3345.3,3344.7,2.69081]
[1721023317189,2.29015073,3345.2,3344.8,0.04716283]
[1721023317415,1.03499874,3345.1,3344.7,2.69081]
[1721023317614,3.42579874,3345.1,3344.8,0.04716283]
[1721023317828,3.42579874,3345.1,3344.7,2.69081]